bitfinex/quotes_BTCUSD_20250927
["timestamp","ask_amount","ask_price","bid_price","bid_amount"]
[1758957974307,5.89252939,109820.0,109810.0,0.0365647]
[1758957974999,6.12106521,109820.0,109810.0,0.0365647]
[1758957977539,5.93012521,109820.0,109810.0,0.0365647]
[1758957991042,5.9301263,109820.0,109810.0,0.0365647]
[1758957994745,5.70159048,109820.0,109810.0,0.0365647]
[1758957995968,5.70159048,109820.0,109810.0,0.0334147]
[1758957996213,5.70159048,109820.0,109810.0,0.0314047]
[1758958002061,5.9301263,109820.0,109810.0,0.0333947]
[1758958004761,5.93012664,109820.0,109810.0,0.0333947]
[1758958006537,5.93012664,109820.0,109810.0,0.0314047]
[1758958007140,5.95753213,109820.0,109810.0,0.0314047]
[1758958011421,5.95753213,109820.0,109810.0,0.02284785]
[1758958016281,5.76286513,109820.0,109810.0,0.02284785]
[1758958017193,5.76286355,109820.0,109810.0,0.02284785]
[1758958019617,5.77714933,109820.0,109810.0,0.02284785]
[1758958020871,5.65841675,109820.0,109810.0,0.02284785]
[1758958021028,5.75535196,109820.0,109810.0,0.02284785]
[1758958021262,5.82391212,109820.0,109810.0,0.02284785]
[1758958022714,5.67157868,109820.0,109810.0,0.02284785]
[1758958023280,5.67157868,109820.0,109810.0,0.02483785]
[1758958023496,5.67157868,109820.0,109810.0,0.02805785]
[1758958027778,5.67157868,109820.0,109810.0,0.02483785]
[1758958028524,5.69724222,109820.0,109810.0,0.02483785]
[1758958033396,5.69724282,109820.0,109810.0,0.02483785]
[1758958035280,5.69724282,109820.0,109810.0,0.02284785]
[1758958035428,5.69724282,109820.0,109810.0,0.01429098]
[1758958041716,5.69724252,109820.0,109810.0,0.01429098]
[1758958044882,5.68295674,109820.0,109810.0,0.01429098]
[1758958048000,5.69724335,109820.0,109810.0,0.01429098]
[1758958049673,5.69724252,109820.0,109810.0,0.01429098]
[1758958053589,5.79724252,109820.0,109810.0,0.01429098]
[1758958054602,5.79724252,109820.0,109810.0,0.01129098]
[1758958054953,5.78295591,109820.0,109810.0,0.01329098]
[1758958055125,5.78295563,109820.0,109810.0,0.01329098]
[1758958056161,5.78595563,109820.0,109810.0,0.01329098]
[1758958057993,5.80024281,109820.0,109810.0,0.01329098]
[1758958059603,5.89516281,109820.0,109810.0,0.01329098]
[1758958063325,5.87805378,109820.0,109810.0,0.01329098]
[1758958063538,5.895156,109820.0,109810.0,0.01329098]
[1758958067851,6.01401937,109820.0,109810.0,0.00473318]
[1758958068243,6.03688937,109820.0,109810.0,0.00473318]
[1758958069261,0.18213277,109810.0,109800.0,0.1]
[1758958069493,5.33234073,109810.0,109800.0,0.10004646]
[1758958069726,5.35521073,109810.0,109800.0,0.10210646]
[1758958069927,5.35521073,109810.0,109800.0,0.10513646]
[1758958070110,5.38262021,109810.0,109800.0,0.10513646]
[1758958070513,5.38262021,109810.0,109800.0,0.10813646]
[1758958070910,5.38262021,109810.0,109800.0,0.11113646]
[1758958071325,5.3740657,109810.0,109800.0,0.11113646]
[1758958071524,5.3826148,109810.0,109800.0,0.13582646]
[1758958072233,5.38261102,109810.0,109800.0,0.13582646]
[1758958073362,5.17201425,109810.0,109800.0,0.13582646]
[1758958073590,5.35414702,109810.0,109800.0,0.13582646]
[1758958076752,5.18747834,109810.0,109800.0,0.13582646]
[1758958078785,5.0533648,109810.0,109800.0,0.13582646]
[1758958078940,5.4319248,109810.0,109800.0,0.13582646]
[1758958081084,5.24723888,109810.0,109800.0,0.13582646]
[1758958082405,5.4319248,109810.0,109800.0,0.13582646]
[1758958084713,5.5844216,109810.0,109800.0,0.13582646]
[1758958086109,5.5844216,109810.0,109800.0,0.13279646]
[1758958087124,5.4895016,109810.0,109800.0,0.13582646]
[1758958087411,5.5844216,109810.0,109800.0,0.13582646]
[1758958088084,5.58442319,109810.0,109800.0,0.13582646]
[1758958088678,5.60152437,109810.0,109800.0,0.13582646]
[1758958089461,5.61581228,109810.0,109800.0,0.13582646]
[1758958090466,5.23725228,109810.0,109800.0,0.13582646]
[1758958090670,5.52089228,109810.0,109800.0,0.13582646]
[1758958090912,5.61581228,109810.0,109800.0,0.13582646]
[1758958094791,5.60152437,109810.0,109800.0,0.13582646]
[1758958096777,5.60153391,109810.0,109800.0,0.13582646]
[1758958101583,5.50653391,109810.0,109800.0,0.13582646]
[1758958101792,5.60145391,109810.0,109800.0,0.13582646]
[1758958102630,5.60149391,109810.0,109800.0,0.13582646]
[1758958103168,5.37287641,109810.0,109800.0,0.13582646]
[1758958104029,5.37287899,109810.0,109800.0,0.13582646]
[1758958105119,4.99435899,109810.0,109800.0,0.13582646]
[1758958105362,5.37287899,109810.0,109800.0,0.13582646]
[1758958106484,4.99435899,109810.0,109800.0,0.13582646]
[1758958106833,5.3872069,109810.0,109800.0,0.13582646]
[1758958107459,5.0086469,109810.0,109800.0,0.13582646]
[1758958107657,5.16008284,109810.0,109800.0,0.13582646]
[1758958112704,4.93146534,109810.0,109800.0,0.13582646]
[1758958112858,5.16008284,109810.0,109800.0,0.13582646]
[1758958114054,5.16008934,109810.0,109800.0,0.13582646]
[1758958114837,5.14580143,109810.0,109800.0,0.13582646]
[1758958117386,4.91718393,109810.0,109800.0,0.13582646]
[1758958117588,5.14580143,109810.0,109800.0,0.13582646]
[1758958117885,5.16008924,109810.0,109800.0,0.13582646]
[1758958119665,5.16008924,109810.0,109800.0,0.13279646]
[1758958120347,5.15908924,109810.0,109800.0,0.13279646]
[1758958124310,5.14480143,109810.0,109800.0,0.13279646]
[1758958127220,5.15908925,109810.0,109800.0,0.13073646]
[1758958127445,5.13341909,109810.0,109800.0,0.13073646]
[1758958127611,5.16550026,109810.0,109800.0,0.13073646]
[1758958132692,5.69411776,109810.0,109800.0,0.13073646]
[1758958132940,6.13411776,109810.0,109800.0,0.13073646]
[1758958133167,6.16152752,109810.0,109800.0,0.13073646]
[1758958134255,6.16152752,109810.0,109800.0,0.12473646]
[1758958134472,6.16452752,109810.0,109800.0,0.12573646]
[1758958134912,6.1502397,109810.0,109800.0,0.12573646]
[1758958137952,6.16452796,109810.0,109800.0,0.12573646]
[1758958140154,6.16452567,109810.0,109800.0,0.12573646]
[1758958140741,5.78596567,109810.0,109800.0,0.12573646]
[1758958141095,6.19463757,109810.0,109800.0,0.12573646]
[1758958144626,6.48963503,109810.0,109800.0,0.12573646]
[1758958146004,6.39467503,109810.0,109800.0,0.12573646]
[1758958146238,6.11111503,109810.0,109800.0,0.12573646]
[1758958146438,6.48959503,109810.0,109800.0,0.12573646]
[1758958147800,6.11111503,109810.0,109800.0,0.12573646]
[1758958148003,6.48959503,109810.0,109800.0,0.12573646]
[1758958149472,6.30846226,109810.0,109800.0,0.12573646]
[1758958149682,6.49059503,109810.0,109800.0,0.12573646]
[1758958149876,6.27823003,109810.0,109800.0,0.12573646]
[1758958150740,5.89975003,109810.0,109800.0,0.12573646]
[1758958150944,6.27823003,109810.0,109800.0,0.12573646]
[1758958152563,6.18331003,109810.0,109800.0,0.12573646]
[1758958152900,6.27823003,109810.0,109800.0,0.12573646]
[1758958153115,5.89975003,109810.0,109800.0,0.12573646]
[1758958153532,6.27823003,109810.0,109800.0,0.12573646]
[1758958154496,5.89975003,109810.0,109800.0,0.12789646]
[1758958154701,6.27823003,109810.0,109800.0,0.12789646]
[1758958157645,6.27823003,109810.0,109800.0,0.12573646]
[1758958160036,5.97339757,109810.0,109800.0,0.12573646]
[1758958160240,5.89975003,109810.0,109800.0,0.12573646]
[1758958160442,6.27823098,109810.0,109800.0,0.12573646]
[1758958161432,5.87847852,109810.0,109800.0,0.12573646]
[1758958161642,6.27823098,109810.0,109800.0,0.12573646]
[1758958162213,5.96112102,109810.0,109800.0,0.12573646]
[1758958169068,5.94615115,109810.0,109800.0,0.12573646]
[1758958169274,5.96112318,109810.0,109800.0,0.12573646]
[1758958169685,5.58264318,109810.0,109800.0,0.12573646]
[1758958169895,5.96112318,109810.0,109800.0,0.12573646]
[1758958170500,5.58264318,109810.0,109800.0,0.12573646]
[1758958170806,5.96112318,109810.0,109800.0,0.12573646]
[1758958173360,5.65629072,109810.0,109800.0,0.13086646]
[1758958173563,5.96112318,109810.0,109800.0,0.13086646]
[1758958174122,5.97823407,109810.0,109800.0,0.13086646]
[1758958175577,5.95082431,109810.0,109800.0,0.13086646]
[1758958175885,5.95082425,109810.0,109800.0,0.13086646]
[1758958177811,5.95082422,109810.0,109800.0,0.13086646]
[1758958179055,5.64599176,109810.0,109800.0,0.13086646]
[1758958179218,5.95082422,109810.0,109800.0,0.13086646]
[1758958182196,5.9508254,109810.0,109800.0,0.13086646]
[1758958183653,5.9508254,109810.0,109800.0,0.12789646]
[1758958185339,5.9508254,109810.0,109800.0,0.15530835]
[1758958186805,5.64599294,109810.0,109800.0,0.15530835]
[1758958187007,5.9508254,109810.0,109800.0,0.15530835]
[1758958196981,5.6108254,109810.0,109800.0,0.15530835]
[1758958198005,5.6108254,109810.0,109800.0,0.15314835]
[1758958199006,5.9508254,109810.0,109800.0,0.15314835]
[1758958200504,5.9507854,109810.0,109800.0,0.15314835]
[1758958201058,5.9507854,109810.0,109800.0,0.15525835]
[1758958201264,5.5723454,109810.0,109800.0,0.15525835]
[1758958201464,5.9507854,109810.0,109800.0,0.15831835]
[1758958202091,5.5723454,109810.0,109800.0,0.15831835]
[1758958202311,5.8558654,109810.0,109800.0,0.15831835]
[1758958202493,5.9507854,109810.0,109800.0,0.15831835]
[1758958204744,5.8558654,109810.0,109800.0,0.15831835]
[1758958205004,5.9507854,109810.0,109800.0,0.15831835]
[1758958206553,5.5723454,109810.0,109800.0,0.15831835]
[1758958206743,5.87456102,109810.0,109800.0,0.15831835]
[1758958206879,5.87456593,109810.0,109800.0,0.15831835]
[1758958211088,5.49612593,109810.0,109800.0,0.15831835]
[1758958211289,5.87456593,109810.0,109800.0,0.15831835]
[1758958211920,5.87457016,109810.0,109800.0,0.15831835]
[1758958213213,6.10317824,109810.0,109800.0,0.15831835]
[1758958215091,6.00825824,109810.0,109800.0,0.15831835]
[1758958215288,6.10317824,109810.0,109800.0,0.15831835]
[1758958215515,6.09675958,109810.0,109800.0,0.15831835]
[1758958215686,6.10317815,109810.0,109800.0,0.15831835]
[1758958219831,6.08606188,109810.0,109800.0,0.15831835]
[1758958220197,5.64596189,109810.0,109800.0,0.15831835]
[1758958220393,5.87456997,109810.0,109800.0,0.15831835]
[1758958220520,5.87456997,109810.0,109800.0,0.15525835]
[1758958221713,5.64596189,109810.0,109800.0,0.15845835]
[1758958221870,5.87456997,109810.0,109800.0,0.15845835]
[1758958225577,5.90198186,109810.0,109800.0,0.15845835]
[1758958234839,5.90198186,109810.0,109800.0,0.15525835]
[1758958236039,5.90198186,109810.0,109800.0,0.15314835]
[1758958236375,5.90198193,109810.0,109800.0,0.15314835]
[1758958239467,5.87457004,109810.0,109800.0,0.15314835]
[1758958241501,5.79280276,109810.0,109800.0,0.15314835]
[1758958241700,5.80709105,109810.0,109800.0,0.15314835]
[1758958244807,5.79280276,109810.0,109800.0,0.15314835]
[1758958249307,5.80709116,109810.0,109800.0,0.15314835]
[1758958250821,5.60017726,109810.0,109800.0,0.15314835]
[1758958254399,6.04757726,109810.0,109800.0,0.15314835]
[1758958259939,6.03901904,109810.0,109800.0,0.15314835]
[1758958260164,6.04757711,109810.0,109800.0,0.15314835]
[1758958260879,6.074989,109810.0,109800.0,0.15314835]
[1758958266603,6.15123274,109810.0,109800.0,0.15314835]
[1758958266831,6.15123274,109810.0,109800.0,0.12573646]
[1758958268160,6.15123274,109810.0,109800.0,0.15314835]
[1758958268404,6.45608456,109810.0,109800.0,0.15314835]
[1758958268602,6.15123274,109810.0,109800.0,0.12573646]
[1758958271765,0.52214936,109800.0,109790.0,0.02741189]
[1758958272011,5.56588188,109800.0,109790.0,0.02741189]
[1758958272171,0.52216595,109790.0,109780.0,0.00302]
[1758958272347,5.33102804,109790.0,109780.0,0.00306637]
[1758958272596,5.35498804,109790.0,109780.0,0.00504637]
[1758958272813,5.35498804,109790.0,109780.0,0.00870152]
[1758958273113,5.36927812,109790.0,109780.0,0.00870152]
[1758958273738,5.36927812,109790.0,109780.0,0.01970152]
[1758958273939,5.08579812,109790.0,109780.0,0.04339152]
[1758958274146,5.46419812,109790.0,109780.0,0.04339152]
[1758958275108,5.46419812,109790.0,109780.0,0.04739152]
[1758958276246,5.08579812,109790.0,109780.0,0.04739152]
[1758958276652,5.46419812,109790.0,109780.0,0.04739152]
[1758958277730,5.08579812,109790.0,109780.0,0.04739152]
[1758958277884,5.46419812,109790.0,109780.0,0.04739152]
[1758958279580,5.08579812,109790.0,109780.0,0.04739152]
[1758958279916,5.46419812,109790.0,109780.0,0.04739152]
[1758958281824,5.08579812,109790.0,109780.0,0.04739152]
[1758958282023,5.46419812,109790.0,109780.0,0.04437152]
[1758958282237,5.56419812,109790.0,109780.0,0.04437152]
[1758958282805,5.56419812,109790.0,109780.0,0.04739152]
[1758958282927,5.56419812,109790.0,109780.0,0.04339152]
[1758958283117,5.56419812,109790.0,109780.0,0.03239152]
[1758958283327,5.56519812,109790.0,109780.0,0.03239152]
[1758958284410,5.56495675,109790.0,109780.0,0.03339152]
[1758958284766,5.55066667,109790.0,109780.0,0.03339152]
[1758958288044,5.56495685,109790.0,109780.0,0.03339152]
[1758958292544,5.65366832,109790.0,109780.0,0.02839152]
[1758958292952,5.65366832,109790.0,109780.0,0.02473637]
[1758958293361,5.6810851,109790.0,109780.0,0.02473637]
[1758958293786,5.65366832,109790.0,109780.0,0.02473637]
[1758958294198,5.56495685,109790.0,109780.0,0.02473637]
[1758958294634,5.59237363,109790.0,109780.0,0.02473637]
[1758958296036,5.59237363,109790.0,109780.0,0.01640116]
[1758958296233,5.28752181,109790.0,109780.0,0.01640116]
[1758958296360,5.59237363,109790.0,109780.0,0.01640116]
[1758958296564,5.67324718,109790.0,109780.0,0.01640116]
[1758958296813,5.36753041,109790.0,109780.0,0.01640116]
[1758958297163,5.54969636,109790.0,109780.0,0.01640116]
[1758958301201,5.54969442,109790.0,109780.0,0.01640116]
[1758958302363,0.52219914,109770.0,109760.0,0.0002]
[1758958302582,5.56739768,109770.0,109760.0,0.00024647]
[1758958302788,5.28623586,109770.0,109760.0,0.00024647]
[1758958303309,0.52223234,109750.0,109740.0,0.03066495]
[1758958303534,5.33190639,109750.0,109740.0,0.00332469]
[1758958303743,5.35559639,109750.0,109740.0,0.00028469]
[1758958303942,0.18224895,109740.0,109730.0,0.03094966]
[1758958304148,0.18224895,109740.0,109730.0,0.03302966]
[1758958304149,4.71471405,109740.0,109730.0,0.03302966]
[1758958304348,4.920653,109740.0,109730.0,0.03302966]
[1758958304894,4.635653,109740.0,109730.0,0.03302966]
[1758958305298,4.920613,109740.0,109730.0,0.03302966]
[1758958305484,4.64994855,109740.0,109730.0,0.03302966]
[1758958305687,4.93490855,109740.0,109730.0,0.03302966]
[1758958305880,4.93490855,109740.0,109730.0,0.04502966]
[1758958306602,4.920613,109740.0,109730.0,0.04902966]
[1758958306751,4.732119,109740.0,109730.0,0.04902966]
[1758958306945,4.447159,109740.0,109730.0,0.04902966]
[1758958307144,4.732119,109740.0,109730.0,0.04902966]
[1758958307372,5.072119,109740.0,109730.0,0.04902966]
[1758958307768,5.14158471,109740.0,109730.0,0.04902966]
[1758958308930,4.85662471,109740.0,109730.0,0.04902966]
[1758958309073,5.14158471,109740.0,109730.0,0.04902966]
[1758958309540,5.15588072,109740.0,109730.0,0.04902966]
[1758958311785,4.8510289,109740.0,109730.0,0.04902966]
[1758958311965,5.15588072,109740.0,109730.0,0.04902966]
[1758958312781,4.8510289,109740.0,109730.0,0.04902966]
[1758958312994,4.87092072,109740.0,109730.0,0.04902966]
[1758958313141,5.15580072,109740.0,109730.0,0.04902966]
[1758958314013,3.44785372,109740.0,109730.0,0.04902966]
[1758958314217,3.73273372,109740.0,109730.0,0.04902966]
[1758958314644,3.58672872,109740.0,109730.0,0.04902966]
[1758958314877,3.28918672,109740.0,109730.0,0.04902966]
[1758958315008,3.25005272,109740.0,109730.0,0.04902966]
[1758958315221,3.36736172,109740.0,109730.0,0.04902966]
[1758958315640,2.7601339,109740.0,109730.0,0.04902966]
[1758958315831,3.32425972,109740.0,109730.0,0.04902966]
[1758958316180,2.95719172,109740.0,109730.0,0.04902966]
[1758958316375,2.6523399,109740.0,109730.0,0.04902966]
[1758958316582,2.95719172,109740.0,109730.0,0.04902966]
[1758958316730,2.95719172,109740.0,109730.0,0.04046677]
[1758958317132,2.92709549,109740.0,109730.0,0.04046677]
[1758958317640,2.92709549,109740.0,109730.0,0.06415677]
[1758958319693,2.95078549,109740.0,109730.0,0.06415677]
[1758958321194,2.64593367,109740.0,109730.0,0.06415677]
[1758958322449,2.95078549,109740.0,109730.0,0.06415677]
[1758958322780,2.54907367,109740.0,109730.0,0.06415677]
[1758958324449,1.67849872,109740.0,109730.0,0.5695007]
[1758958324646,2.14566767,109740.0,109730.0,0.55127415]
[1758958325007,0.74956167,109740.0,109730.0,0.06415677]
[1758958325241,0.74956167,109740.0,109730.0,0.24642233]
[1758958325977,0.56731272,109740.0,109730.0,0.24642233]
[1758958326446,0.74956167,109740.0,109730.0,0.24642233]
[1758958327593,0.56731272,109740.0,109730.0,0.24642233]
[1758958329091,0.57371083,109740.0,109730.0,0.24642233]
[1758958331275,0.23371083,109740.0,109730.0,0.24642233]
[1758958332204,0.23371083,109740.0,109730.0,0.47520778]
[1758958333221,0.57371083,109740.0,109730.0,0.24642233]
[1758958333720,0.43955382,109740.0,109730.0,0.47520778]
[1758958333936,0.43955382,109740.0,109730.0,0.76028778]
[1758958334224,0.43955382,109740.0,109730.0,0.47520778]
[1758958334427,0.43955382,109740.0,109730.0,0.76036778]
[1758958338462,0.43955382,109740.0,109730.0,0.47520778]
[1758958338666,0.43955382,109740.0,109730.0,0.76028778]
[1758958339293,0.43955382,109740.0,109730.0,0.47520778]
[1758958339691,0.43955382,109740.0,109730.0,0.76024778]
[1758958341505,0.43955382,109740.0,109730.0,0.76020778]
[1758958342622,0.43955382,109740.0,109730.0,0.98899323]
[1758958342999,0.43955382,109740.0,109730.0,0.76020778]
[1758958343192,0.43955382,109740.0,109730.0,0.98899323]
[1758958344161,0.43955382,109740.0,109730.0,0.97699323]
[1758958344360,0.43955382,109740.0,109730.0,0.74840778]
[1758958344500,0.43955382,109740.0,109730.0,0.48720778]
[1758958345349,0.43955382,109740.0,109730.0,0.48320778]
[1758958345550,0.43955382,109740.0,109730.0,0.48920778]
[1758958346371,0.43955382,109740.0,109730.0,0.77436778]
[1758958346816,0.43955382,109740.0,109730.0,0.48920778]
[1758958347039,0.43955382,109740.0,109730.0,0.77436778]
[1758958348722,0.43955382,109740.0,109730.0,0.77432778]
[1758958352340,0.43955382,109740.0,109730.0,0.48920778]
[1758958352491,0.43955382,109740.0,109730.0,0.77436778]
[1758958355497,0.26873587,109740.0,109730.0,0.77436778]
[1758958356020,0.01429479,109750.0,109740.0,0.18224895]
[1758958356475,0.01429479,109750.0,109740.0,0.20681895]
[1758958356920,0.08239906,109750.0,109740.0,0.23423866]
[1758958357145,0.01429479,109750.0,109740.0,0.23423866]
[1758958357497,0.35429479,109750.0,109740.0,0.23423866]
[1758958357690,0.35429479,109750.0,109740.0,0.52739866]
[1758958358136,0.35429479,109750.0,109740.0,0.53239866]
[1758958358358,0.35429479,109750.0,109740.0,0.24723866]
[1758958358513,0.35429479,109750.0,109740.0,0.53235866]
[1758958359748,0.35429479,109750.0,109740.0,0.53231866]
[1758958360090,0.35429479,109750.0,109740.0,0.53443866]
[1758958361040,0.35429479,109750.0,109740.0,0.53758866]
[1758958361818,0.42198158,109750.0,109740.0,0.26114302]
[1758958361954,0.42198158,109750.0,109740.0,0.54618302]
[1758958362442,0.42198158,109750.0,109740.0,0.26114302]
[1758958362653,0.42198158,109750.0,109740.0,0.54299302]
[1758958362875,1.46157137,109750.0,109740.0,0.07362407]
[1758958365503,1.44727658,109750.0,109740.0,0.07362407]
[1758958367470,1.45368529,109750.0,109740.0,0.07362407]
[1758958369629,1.46797948,109750.0,109740.0,0.07362407]
[1758958375607,1.75293948,109750.0,109740.0,0.07362407]
[1758958376013,1.46797948,109750.0,109740.0,0.07362407]
[1758958376407,1.75289948,109750.0,109740.0,0.07362407]
[1758958384282,1.52411403,109750.0,109740.0,0.07362407]
[1758958384490,1.75289948,109750.0,109740.0,0.07362407]
[1758958386098,1.75289948,109750.0,109740.0,0.04620436]
[1758958386548,1.41289948,109750.0,109740.0,0.04620436]
[1758958386772,1.22623378,109750.0,109740.0,0.04620436]
[1758958386968,1.22623378,109750.0,109740.0,0.03320436]
[1758958387310,1.22923378,109750.0,109740.0,0.03520436]
[1758958387994,1.45801923,109750.0,109740.0,0.03320436]
[1758958388192,1.22923378,109750.0,109740.0,0.03520436]
[1758958390624,1.30555701,109750.0,109740.0,0.03520436]
[1758958391459,1.66264329,109750.0,109740.0,0.03520436]
[1758958391659,1.73072703,109750.0,109740.0,0.03520436]
[1758958402356,1.73072242,109750.0,109740.0,0.03520436]
[1758958406323,1.72431371,109750.0,109740.0,0.03520436]
[1758958406474,1.7307202,109750.0,109740.0,0.03520436]
[1758958407099,1.4458002,109750.0,109740.0,0.03520436]
[1758958407727,1.7303602,109750.0,109740.0,0.03520436]
[1758958407938,1.4458002,109750.0,109740.0,0.03520436]
[1758958408145,1.7303602,109750.0,109740.0,0.03520436]
[1758958408350,1.4458002,109750.0,109740.0,0.03520436]
[1758958408553,1.7303202,109750.0,109740.0,0.03520436]
[1758958411024,1.7302802,109750.0,109740.0,0.03520436]
[1758958412637,1.4458002,109750.0,109740.0,0.03520436]
[1758958412791,1.7302802,109750.0,109740.0,0.03520436]
[1758958412987,1.7303602,109750.0,109740.0,0.03520436]
[1758958413194,1.51348923,109750.0,109740.0,0.03520436]
[1758958413411,1.69572157,109750.0,109740.0,0.03520436]
[1758958416596,1.69569045,109750.0,109740.0,0.03520436]
[1758958432680,1.69569771,109750.0,109740.0,0.03520436]
[1758958435593,1.68140352,109750.0,109740.0,0.03520436]
[1758958436005,1.79252042,109750.0,109740.0,0.03520436]
[1758958438722,1.88123189,109750.0,109740.0,0.03520436]
[1758958438951,1.89552822,109750.0,109740.0,0.03520436]
[1758958441186,1.89552553,109750.0,109740.0,0.03520436]
[1758958444077,1.80681406,109750.0,109740.0,0.03520436]
[1758958444298,1.7833206,109750.0,109740.0,0.03520436]
[1758958444644,1.80682705,109750.0,109740.0,0.03520436]
[1758958445816,1.8068247,109750.0,109740.0,0.03520436]
[1758958446909,1.63681221,109750.0,109740.0,0.03520436]
[1758958447725,1.73161221,109750.0,109740.0,0.03520436]
[1758958448275,1.55375865,109750.0,109740.0,0.03520436]
[1758958449494,1.55380504,109750.0,109740.0,0.03520436]
[1758958450560,1.70646982,109750.0,109740.0,0.03520436]
[1758958451553,1.70642982,109750.0,109740.0,0.03520436]
[1758958453314,1.70642808,109750.0,109740.0,0.03520436]
[1758958454191,1.73385338,109750.0,109740.0,0.03520436]
[1758958455017,1.73393338,109750.0,109740.0,0.03520436]
[1758958455623,1.82264485,109750.0,109740.0,0.03520436]
[1758958456387,1.73281648,109750.0,109740.0,0.03520436]
[1758958457438,1.35345648,109750.0,109740.0,0.03520436]
[1758958457600,1.73277648,109750.0,109740.0,0.03520436]
[1758958459534,1.73277648,109750.0,109740.0,0.04026436]
[1758958460210,1.35345648,109750.0,109740.0,0.04026436]
[1758958460414,1.73281648,109750.0,109740.0,0.04026436]
[1758958461872,1.72640611,109750.0,109740.0,0.04026436]
[1758958462019,1.73281772,109750.0,109740.0,0.04026436]
[1758958464093,1.35345772,109750.0,109740.0,0.04026436]
[1758958464400,1.73277772,109750.0,109740.0,0.04026436]
[1758958464597,1.73281772,109750.0,109740.0,0.04026436]
[1758958464956,1.35345772,109750.0,109740.0,0.04026436]
[1758958465163,1.73281772,109750.0,109740.0,0.04026436]
[1758958468420,1.35345772,109750.0,109740.0,0.04026436]
[1758958468621,1.73281772,109750.0,109740.0,0.04026436]
[1758958469263,1.73282698,109750.0,109740.0,0.04026436]
[1758958471201,1.73278698,109750.0,109740.0,0.04026436]
[1758958471403,1.70536168,109750.0,109740.0,0.04026436]
[1758958476967,1.70536168,109750.0,109740.0,0.04034961]
[1758958477564,1.50368159,109750.0,109740.0,0.04034961]
[1758958477765,4.80507159,109750.0,109740.0,0.04034961]
[1758958485998,4.80507215,109750.0,109740.0,0.04034961]
[1758958491074,4.80507215,109750.0,109740.0,0.03728961]
[1758958500851,4.8050747,109750.0,109740.0,0.03728961]
[1758958501346,4.7098747,109750.0,109740.0,0.04044961]
[1758958501499,4.8048347,109750.0,109740.0,0.04044961]
[1758958501926,3.96798124,109750.0,109740.0,0.04044961]
[1758958502132,4.19686797,109750.0,109740.0,0.04044961]
[1758958502346,4.46669164,109750.0,109740.0,0.04044961]
[1758958502784,4.46669164,109750.0,109740.0,0.06787436]
[1758958503218,4.44958804,109750.0,109740.0,0.06787436]
[1758958503631,4.46388336,109750.0,109740.0,0.06787436]
[1758958504732,3.61111336,109750.0,109740.0,0.06787436]
[1758958504932,3.89523336,109750.0,109740.0,0.06787436]
[1758958505498,3.88668563,109750.0,109740.0,0.06787436]
[1758958507467,3.60256563,109750.0,109740.0,0.06787436]
[1758958507734,3.88668563,109750.0,109740.0,0.06787436]
[1758958507964,3.60256563,109750.0,109740.0,0.06787436]
[1758958508441,3.88668563,109750.0,109740.0,0.06787436]
[1758958510118,3.89897759,109750.0,109740.0,0.06787436]
[1758958512562,3.97518367,109750.0,109740.0,0.06787436]
[1758958512762,3.9751762,109750.0,109740.0,0.06787436]
[1758958514662,3.67008339,109750.0,109740.0,0.06787436]
[1758958514861,3.8339742,109750.0,109740.0,0.06787436]
[1758958517554,3.00515839,109750.0,109740.0,0.06787436]
[1758958517786,3.3102512,109750.0,109740.0,0.06787436]
[1758958521685,3.05038481,109750.0,109740.0,0.06787436]
[1758958524314,3.39038481,109750.0,109740.0,0.06787436]
[1758958528265,3.39893234,109750.0,109740.0,0.06787436]
[1758958529371,3.41603031,109750.0,109740.0,0.06787436]
[1758958535054,3.41603031,109750.0,109740.0,0.06471436]
[1758958538369,3.41603031,109750.0,109740.0,0.06271436]
[1758958542773,3.41603031,109750.0,109740.0,0.03528961]
[1758958546150,3.13191031,109750.0,109740.0,0.03528961]
[1758958546354,3.51115031,109750.0,109740.0,0.03528961]
[1758958552406,3.51107031,109750.0,109740.0,0.03528961]
[1758958553468,3.13191031,109750.0,109740.0,0.03528961]
[1758958553670,3.51107031,109750.0,109740.0,0.03528961]
[1758958554279,3.41611031,109750.0,109740.0,0.03528961]
[1758958554498,3.51107031,109750.0,109740.0,0.03528961]
[1758958554874,3.32790551,109750.0,109740.0,0.03528961]
[1758958555633,3.39642042,109750.0,109740.0,0.03528961]
[1758958555862,3.01726042,109750.0,109740.0,0.03528961]
[1758958556061,3.30142042,109750.0,109740.0,0.03528961]
[1758958556326,3.39638042,109750.0,109740.0,0.03528961]
[1758958563078,3.39638429,109750.0,109740.0,0.03528961]
[1758958563675,3.01726429,109750.0,109740.0,0.03528961]
[1758958563871,3.39634429,109750.0,109740.0,0.03528961]
[1758958565062,3.01726429,109750.0,109740.0,0.03528961]
[1758958565263,3.39634429,109750.0,109740.0,0.03528961]
[1758958565704,3.09125148,109750.0,109740.0,0.03528961]
[1758958565949,3.39634429,109750.0,109740.0,0.03528961]
[1758958569281,3.01726429,109750.0,109740.0,0.03528961]
[1758958569484,3.39634429,109750.0,109740.0,0.03528961]
[1758958572617,3.54899844,109750.0,109740.0,0.03528961]
[1758958572878,3.37180077,109750.0,109740.0,0.03528961]
[1758958573095,3.35038868,109750.0,109740.0,0.03528961]
[1758958573320,3.36468509,109750.0,109740.0,0.03528961]
[1758958573516,3.54691743,109750.0,109740.0,0.03528961]
[1758958574550,3.57434265,109750.0,109740.0,0.03528961]
[1758958575348,3.56004624,109750.0,109740.0,0.03528961]
[1758958579109,3.53262102,109750.0,109740.0,0.03528961]
[1758958579311,3.53262202,109750.0,109740.0,0.03528961]
[1758958579730,3.54691821,109750.0,109740.0,0.03528961]
[1758958580681,3.08917125,109750.0,109740.0,0.04031961]
[1758958580886,3.54691821,109750.0,109740.0,0.04031961]
[1758958584610,3.54692066,109750.0,109740.0,0.04031961]
[1758958585747,3.31804718,109750.0,109740.0,0.04031961]
[1758958597580,3.31805,109750.0,109740.0,0.04031961]
[1758958598563,3.31805062,109750.0,109740.0,0.04031961]
[1758958600717,3.31805062,109750.0,109740.0,0.03736961]
[1758958601785,3.31805364,109750.0,109740.0,0.03736961]
[1758958608837,3.22309364,109750.0,109740.0,0.03736961]
[1758958609050,3.31805364,109750.0,109740.0,0.03736961]
[1758958610389,3.30308926,109750.0,109740.0,0.03736961]
[1758958610573,3.31805719,109750.0,109740.0,0.03736961]
[1758958611431,2.93897719,109750.0,109740.0,0.03736961]
[1758958611635,3.31805719,109750.0,109740.0,0.03736961]
[1758958611850,2.93897719,109750.0,109740.0,0.03736961]
[1758958612099,3.31805719,109750.0,109740.0,0.03736961]
[1758958613212,2.93897719,109750.0,109740.0,0.03736961]
[1758958613694,3.31801719,109750.0,109740.0,0.03736961]
[1758958613932,2.93897719,109750.0,109740.0,0.04047961]
[1758958614176,3.22305719,109750.0,109740.0,0.04047961]
[1758958614411,3.31801719,109750.0,109740.0,0.04047961]
[1758958615971,2.93897719,109750.0,109740.0,0.04047961]
[1758958616199,3.31801719,109750.0,109740.0,0.04047961]
[1758958622675,3.22305719,109750.0,109740.0,0.04047961]
[1758958622879,3.31801719,109750.0,109740.0,0.04047961]
[1758958625380,3.10788749,109750.0,109740.0,0.04047961]
[1758958625582,3.01292749,109750.0,109740.0,0.04047961]
[1758958625742,3.10788749,109750.0,109740.0,0.04047961]